[Event "Titled Tuesday Blitz August 1 Early 2023"]
[White "Sarana, Alexey"]
[Black "Remizov, Yaroslav"]
[WhiteFideId "24133795"]
[BlackFideId "34134015"]
[WhiteElo "3096"]
[BlackElo "2782"]
[Result "1/2-1/2"]
[Round "6"]
[TimeControl "180+1"]
[Date "2023.08.01"]
[WhiteClock "0:00:03"]
[BlackClock "0:00:03"]
[Board "11"]

1. c4 {[%clk 0:03:00]}  e5 {[%clk 0:02:57]} 2. Nc3 {[%clk 0:03:00]}  Bb4 {[%clk 0:02:55]} 3. Nd5 {[%clk 0:03:00]}  Be7 {[%clk 0:02:54]} 4. d4 {[%clk 0:03:00]}  exd4 {[%clk 0:02:53]} 5. Qxd4 {[%clk 0:03:01]}  Nf6 {[%clk 0:02:52]} 6. Nxe7 {[%clk 0:03:01]}  Qxe7 {[%clk 0:02:52]} 7. Bg5 {[%clk 0:03:00]}  Nc6 {[%clk 0:02:51]} 8. Qc3 {[%clk 0:02:59]}  d5 {[%clk 0:02:50]} 9. Bxf6 {[%clk 0:02:32]}  gxf6 {[%clk 0:02:49]} 10. cxd5 {[%clk 0:02:32]}  Nb4 {[%clk 0:02:49]} 11. Nf3 {[%clk 0:02:30]}  Nxd5 {[%clk 0:02:40]} 12. Qb3 {[%clk 0:01:40]}  Be6 {[%clk 0:02:33]} 13. Nd4 {[%clk 0:01:37]}  O-O-O {[%clk 0:02:30]} 14. Nxe6 {[%clk 0:01:38]}  fxe6 {[%clk 0:02:28]} 15. e3 {[%clk 0:01:09]}  Qb4+ {[%clk 0:02:22]} 16. Qxb4 {[%clk 0:01:08]}  Nxb4 {[%clk 0:02:22]} 17. Rc1 {[%clk 0:00:51]}  Nxa2 {[%clk 0:02:22]} 18. Ra1 {[%clk 0:00:51]}  Nb4 {[%clk 0:02:21]} 19. Rxa7 {[%clk 0:00:49]}  Nc2+ {[%clk 0:02:16]} 20. Ke2 {[%clk 0:00:49]}  c5 {[%clk 0:01:57]} 21. g4 {[%clk 0:00:41]}  Kb8 {[%clk 0:01:51]} 22. Ra5 {[%clk 0:00:37]}  b6 {[%clk 0:01:45]} 23. Ra4 {[%clk 0:00:36]}  Rd6 {[%clk 0:01:35]} 24. Bg2 {[%clk 0:00:33]}  Rhd8 {[%clk 0:01:36]} 25. Ra8+ {[%clk 0:00:32]}  Kc7 {[%clk 0:01:36]} 26. Ra7+ {[%clk 0:00:33]}  Kb8 {[%clk 0:01:33]} 27. Rxh7 {[%clk 0:00:30]}  Nb4 {[%clk 0:01:17]} 28. Ra1 {[%clk 0:00:23]}  Rd2+ {[%clk 0:01:13]} 29. Kf3 {[%clk 0:00:24]}  Rxb2 {[%clk 0:00:52]} 30. Kg3 {[%clk 0:00:22]}  Nd5 {[%clk 0:00:51]} 31. Rha7 {[%clk 0:00:20]}  Rc8 {[%clk 0:00:45]} 32. Bf1 {[%clk 0:00:14]}  Rc7 {[%clk 0:00:33]} 33. Ra8+ {[%clk 0:00:13]}  Kb7 {[%clk 0:00:34]} 34. Re8 {[%clk 0:00:06]}  Re7 {[%clk 0:00:29]} 35. Rd8 {[%clk 0:00:03]}  f5 {[%clk 0:00:15]} 36. h4 {[%clk 0:00:03]}  fxg4 {[%clk 0:00:13]} 37. h5 {[%clk 0:00:03]}  Rf7 {[%clk 0:00:09]} 38. Bg2 {[%clk 0:00:04]}  Rbxf2 {[%clk 0:00:07]} 39. h6 {[%clk 0:00:03]}  R2f6 {[%clk 0:00:07]} 40. Rh1 {[%clk 0:00:03]}  Kc7 {[%clk 0:00:07]} 41. Rh8 {[%clk 0:00:03]}  Nxe3 {[%clk 0:00:07]} 42. Be4 {[%clk 0:00:03]}  Nf5+ {[%clk 0:00:06]} 43. Kxg4 {[%clk 0:00:03]}  Rg6+ {[%clk 0:00:06]} 44. Kh5 {[%clk 0:00:04]}  Rg3 {[%clk 0:00:04]} 45. Bxf5 {[%clk 0:00:04]}  Rxf5+ {[%clk 0:00:03]} 46. Kh4 {[%clk 0:00:04]}  Rg6 {[%clk 0:00:03]} 47. Rh7+ {[%clk 0:00:02]}  Kc6 {[%clk 0:00:04]} 48. Re1 {[%clk 0:00:02]}  Kb5 {[%clk 0:00:03]} 49. Rh8 {[%clk 0:00:02]}  Rf2 {[%clk 0:00:04]} 50. Kh3 {[%clk 0:00:02]}  Rff6 {[%clk 0:00:03]} 51. h7 {[%clk 0:00:02]}  Rh6+ {[%clk 0:00:02]} 52. Kg4 {[%clk 0:00:03]}  Rf7 {[%clk 0:00:02]} 53. Rb1+ {[%clk 0:00:03]}  Kc4 {[%clk 0:00:01]} 54. Rc1+ {[%clk 0:00:04]}  Kb5 {[%clk 0:00:02]} 55. Rb1+ {[%clk 0:00:03]}  Kc4 {[%clk 0:00:02]} 56. Rc1+ {[%clk 0:00:03]}  Kb5 {[%clk 0:00:03]} 57. Rb1+ {[%clk 0:00:03]} 1/2-1/2


[Site "https://www.chess.com"]

[Event "Titled Tuesday Blitz August 1 Early 2023"]
[White "Mikhailovsky, Vladimir"]
[Black "Movahed, Sina"]
[WhiteFideId "34105414"]
[BlackFideId "42520835"]
[WhiteElo "2752"]
[BlackElo "2945"]
[Result "0-1"]
[Round "6"]
[TimeControl "180+1"]
[Date "2023.08.01"]
[WhiteClock "0:00:00"]
[BlackClock "0:00:57"]
[Board "18"]

1. e4 {[%clk 0:03:00]}  c5 {[%clk 0:02:59]} 2. c3 {[%clk 0:03:00]}  Nf6 {[%clk 0:02:59]} 3. e5 {[%clk 0:03:00]}  Nd5 {[%clk 0:03:00]} 4. Nf3 {[%clk 0:03:01]}  d6 {[%clk 0:03:00]} 5. Bb5+ {[%clk 0:03:01]}  Bd7 {[%clk 0:02:59]} 6. Bc4 {[%clk 0:03:01]}  Nb6 {[%clk 0:02:58]} 7. Bxf7+ {[%clk 0:03:01]}  Kxf7 {[%clk 0:02:58]} 8. e6+ {[%clk 0:03:01]}  Kg8 {[%clk 0:02:42]} 9. exd7 {[%clk 0:02:59]}  Qxd7 {[%clk 0:02:43]} 10. d4 {[%clk 0:02:52]}  cxd4 {[%clk 0:02:37]} 11. cxd4 {[%clk 0:02:53]}  e6 {[%clk 0:02:35]} 12. O-O {[%clk 0:02:51]}  Nc6 {[%clk 0:02:35]} 13. Nc3 {[%clk 0:02:50]}  d5 {[%clk 0:02:24]} 14. Bf4 {[%clk 0:02:31]}  Bd6 {[%clk 0:02:18]} 15. Bxd6 {[%clk 0:02:28]}  Qxd6 {[%clk 0:02:19]} 16. Re1 {[%clk 0:02:29]}  Re8 {[%clk 0:02:14]} 17. Qe2 {[%clk 0:01:56]}  a6 {[%clk 0:02:01]} 18. Rad1 {[%clk 0:01:56]}  g6 {[%clk 0:02:00]} 19. h4 {[%clk 0:01:26]}  Kg7 {[%clk 0:01:57]} 20. h5 {[%clk 0:01:26]}  Rhf8 {[%clk 0:01:57]} 21. hxg6 {[%clk 0:01:07]}  hxg6 {[%clk 0:01:58]} 22. Rd3 {[%clk 0:00:51]}  Nd7 {[%clk 0:01:56]} 23. Qd2 {[%clk 0:00:46]}  Rh8 {[%clk 0:01:52]} 24. Ne2 {[%clk 0:00:40]}  Nf6 {[%clk 0:01:47]} 25. Ng3 {[%clk 0:00:32]}  Nh5 {[%clk 0:01:47]} 26. Ne5 {[%clk 0:00:28]}  Nxe5 {[%clk 0:01:25]} 27. Rxe5 {[%clk 0:00:28]}  Nf6 {[%clk 0:01:25]} 28. Rg5 {[%clk 0:00:20]}  Rh6 {[%clk 0:01:19]} 29. Re3 {[%clk 0:00:08]}  Qf4 {[%clk 0:01:10]} 30. Nf5+ {[%clk 0:00:03]}  exf5 {[%clk 0:01:02]} 31. Rxg6+ {[%clk 0:00:00]}  Kxg6 {[%clk 0:00:57]} 0-1


[Site "https://www.chess.com"]

[Event "Titled Tuesday Blitz August 1 Early 2023"]
[White "Harsh Suresh"]
[Black "Skvortsov, Andrei"]
[WhiteFideId "45018464"]
[BlackFideId "24108600"]
[WhiteElo "2887"]
[BlackElo "2729"]
[Result "1/2-1/2"]
[Round "6"]
[TimeControl "180+1"]
[Date "2023.08.01"]
[WhiteClock "0:00:10"]
[BlackClock "0:00:08"]
[Board "23"]

1. d4 {[%clk 0:03:00]}  Nf6 {[%clk 0:02:56]} 2. c4 {[%clk 0:03:00]}  e6 {[%clk 0:02:56]} 3. g3 {[%clk 0:03:00]}  c5 {[%clk 0:02:52]} 4. Nf3 {[%clk 0:02:58]}  cxd4 {[%clk 0:02:45]} 5. Nxd4 {[%clk 0:02:59]}  Bb4+ {[%clk 0:02:45]} 6. Bd2 {[%clk 0:02:57]}  Bxd2+ {[%clk 0:02:38]} 7. Qxd2 {[%clk 0:02:54]}  d5 {[%clk 0:02:39]} 8. cxd5 {[%clk 0:02:38]}  Qxd5 {[%clk 0:02:32]} 9. Nf3 {[%clk 0:02:37]}  Qxd2+ {[%clk 0:02:24]} 10. Nbxd2 {[%clk 0:02:37]}  O-O {[%clk 0:02:22]} 11. Bg2 {[%clk 0:02:38]}  Nc6 {[%clk 0:02:19]} 12. O-O {[%clk 0:02:36]}  Rd8 {[%clk 0:02:15]} 13. Nc4 {[%clk 0:02:35]}  Bd7 {[%clk 0:02:10]} 14. Nfe5 {[%clk 0:02:15]}  Nxe5 {[%clk 0:02:00]} 15. Nxe5 {[%clk 0:02:15]}  Be8 {[%clk 0:01:58]} 16. Rfd1 {[%clk 0:02:13]}  Rxd1+ {[%clk 0:01:49]} 17. Rxd1 {[%clk 0:02:13]}  Rb8 {[%clk 0:01:46]} 18. Rc1 {[%clk 0:02:11]}  Nd7 {[%clk 0:01:38]} 19. Nxd7 {[%clk 0:02:04]}  Bxd7 {[%clk 0:01:39]} 20. Rc7 {[%clk 0:02:04]}  Bc8 {[%clk 0:01:38]} 21. a4 {[%clk 0:01:58]}  a5 {[%clk 0:01:37]} 22. h4 {[%clk 0:01:42]}  Kf8 {[%clk 0:01:24]} 23. Be4 {[%clk 0:01:40]}  h6 {[%clk 0:01:16]} 24. Kg2 {[%clk 0:01:36]}  Ke8 {[%clk 0:01:07]} 25. b3 {[%clk 0:01:34]}  b6 {[%clk 0:01:06]} 26. Bc6+ {[%clk 0:01:33]}  Kf8 {[%clk 0:01:06]} 27. Ra7 {[%clk 0:01:28]}  e5 {[%clk 0:00:57]} 28. Bd5 {[%clk 0:01:25]}  Be6 {[%clk 0:00:58]} 29. Bxe6 {[%clk 0:01:25]}  fxe6 {[%clk 0:00:59]} 30. e3 {[%clk 0:01:20]}  e4 {[%clk 0:00:56]} 31. g4 {[%clk 0:01:20]}  Rd8 {[%clk 0:00:51]} 32. Rb7 {[%clk 0:01:19]}  Rd6 {[%clk 0:00:51]} 33. g5 {[%clk 0:00:37]}  hxg5 {[%clk 0:00:49]} 34. hxg5 {[%clk 0:00:38]}  Rd5 {[%clk 0:00:37]} 35. g6 {[%clk 0:00:27]}  Rg5+ {[%clk 0:00:37]} 36. Kf1 {[%clk 0:00:27]}  Rxg6 {[%clk 0:00:37]} 37. Rxb6 {[%clk 0:00:28]}  Rh6 {[%clk 0:00:38]} 38. Rb5 {[%clk 0:00:27]}  Rh1+ {[%clk 0:00:38]} 39. Ke2 {[%clk 0:00:21]}  Rb1 {[%clk 0:00:38]} 40. Kd2 {[%clk 0:00:22]}  Ke7 {[%clk 0:00:27]} 41. Kc3 {[%clk 0:00:21]}  Rf1 {[%clk 0:00:25]} 42. Rxa5 {[%clk 0:00:20]}  Rxf2 {[%clk 0:00:26]} 43. Kd4 {[%clk 0:00:21]}  Rf5 {[%clk 0:00:20]} 44. Ra7+ {[%clk 0:00:20]}  Kf6 {[%clk 0:00:20]} 45. Kxe4 {[%clk 0:00:21]}  g5 {[%clk 0:00:20]} 46. b4 {[%clk 0:00:17]}  Re5+ {[%clk 0:00:20]} 47. Kf3 {[%clk 0:00:17]}  g4+ {[%clk 0:00:20]} 48. Kxg4 {[%clk 0:00:11]}  Re4+ {[%clk 0:00:20]} 49. Kf3 {[%clk 0:00:10]}  Rxb4 {[%clk 0:00:21]} 50. a5 {[%clk 0:00:11]}  Ra4 {[%clk 0:00:20]} 51. a6 {[%clk 0:00:11]}  Rb4 {[%clk 0:00:17]} 52. Ra8 {[%clk 0:00:10]}  Ra4 {[%clk 0:00:17]} 53. a7 {[%clk 0:00:09]}  Kg7 {[%clk 0:00:17]} 54. Ke2 {[%clk 0:00:09]}  Ra3 {[%clk 0:00:17]} 55. Kd2 {[%clk 0:00:09]}  e5 {[%clk 0:00:17]} 56. Kc2 {[%clk 0:00:10]}  e4 {[%clk 0:00:17]} 57. Kb2 {[%clk 0:00:10]}  Ra6 {[%clk 0:00:18]} 58. Kc3 {[%clk 0:00:10]}  Ra3+ {[%clk 0:00:18]} 59. Kd4 {[%clk 0:00:10]}  Ra4+ {[%clk 0:00:19]} 60. Ke5 {[%clk 0:00:11]}  Kh7 {[%clk 0:00:19]} 61. Kf6 {[%clk 0:00:10]}  Ra6+ {[%clk 0:00:19]} 62. Kf5 {[%clk 0:00:10]}  Ra4 {[%clk 0:00:19]} 63. Kf4 {[%clk 0:00:09]}  Kg7 {[%clk 0:00:19]} 64. Ke5 {[%clk 0:00:09]}  Kh7 {[%clk 0:00:15]} 65. Ke6 {[%clk 0:00:08]}  Ra6+ {[%clk 0:00:14]} 66. Kd7 {[%clk 0:00:07]}  Ra3 {[%clk 0:00:14]} 67. Kc6 {[%clk 0:00:08]}  Kg7 {[%clk 0:00:11]} 68. Kb6 {[%clk 0:00:08]}  Rb3+ {[%clk 0:00:10]} 69. Kc5 {[%clk 0:00:09]}  Ra3 {[%clk 0:00:11]} 70. Kd6 {[%clk 0:00:09]}  Ra5 {[%clk 0:00:10]} 71. Ke6 {[%clk 0:00:09]}  Ra6+ {[%clk 0:00:10]} 72. Ke5 {[%clk 0:00:09]}  Ra4 {[%clk 0:00:10]} 73. Kf5 {[%clk 0:00:09]}  Kh7 {[%clk 0:00:10]} 74. Kf6 {[%clk 0:00:10]}  Ra6+ {[%clk 0:00:09]} 75. Kf7 {[%clk 0:00:10]}  Ra3 {[%clk 0:00:09]} 76. Ke6 {[%clk 0:00:10]}  Ra6+ {[%clk 0:00:07]} 77. Kf5 {[%clk 0:00:10]}  Ra4 {[%clk 0:00:08]} 1/2-1/2


[Site "https://www.chess.com"]

[Event "Titled Tuesday Blitz August 1 Early 2023"]
[White "Khubukshanov, Erdem"]
[Black "Zhao, Jun"]
[WhiteFideId "54114527"]
[BlackFideId "8602522"]
[WhiteElo "2863"]
[BlackElo "2729"]
[Result "1-0"]
[Round "6"]
[TimeControl "180+1"]
[Date "2023.08.01"]
[WhiteClock "0:00:20"]
[BlackClock "0:00:00"]
[Board "24"]

1. Nf3 {[%clk 0:03:00]}  Nf6 {[%clk 0:02:52]} 2. g3 {[%clk 0:02:56]}  d5 {[%clk 0:02:52]} 3. Bg2 {[%clk 0:02:53]}  e6 {[%clk 0:02:53]} 4. O-O {[%clk 0:02:53]}  Be7 {[%clk 0:02:53]} 5. d3 {[%clk 0:02:48]}  O-O {[%clk 0:02:53]} 6. Nbd2 {[%clk 0:02:48]}  b6 {[%clk 0:02:46]} 7. a4 {[%clk 0:02:46]}  Bb7 {[%clk 0:02:46]} 8. a5 {[%clk 0:02:43]}  c5 {[%clk 0:02:45]} 9. c3 {[%clk 0:02:39]}  b5 {[%clk 0:02:42]} 10. d4 {[%clk 0:02:26]}  a6 {[%clk 0:02:28]} 11. dxc5 {[%clk 0:02:16]}  Bxc5 {[%clk 0:02:28]} 12. Nb3 {[%clk 0:02:06]}  Ba7 {[%clk 0:02:28]} 13. Ne5 {[%clk 0:02:01]}  Nbd7 {[%clk 0:02:16]} 14. Bf4 {[%clk 0:01:57]}  Rc8 {[%clk 0:02:13]} 15. Nd4 {[%clk 0:01:54]}  Nxe5 {[%clk 0:02:07]} 16. Bxe5 {[%clk 0:01:55]}  Ng4 {[%clk 0:01:59]} 17. Bf4 {[%clk 0:01:43]}  e5 {[%clk 0:01:55]} 18. Bh3 {[%clk 0:01:41]}  exd4 {[%clk 0:01:36]} 19. Bxg4 {[%clk 0:01:39]}  f5 {[%clk 0:01:24]} 20. Bf3 {[%clk 0:01:39]}  dxc3 {[%clk 0:01:25]} 21. bxc3 {[%clk 0:01:39]}  Rxc3 {[%clk 0:01:25]} 22. Qd2 {[%clk 0:01:39]}  Rc4 {[%clk 0:01:25]} 23. Rfd1 {[%clk 0:01:35]}  h6 {[%clk 0:01:10]} 24. Bxd5+ {[%clk 0:01:25]}  Bxd5 {[%clk 0:01:10]} 25. Qxd5+ {[%clk 0:01:26]}  Qxd5 {[%clk 0:01:10]} 26. Rxd5 {[%clk 0:01:27]}  g5 {[%clk 0:01:08]} 27. Bd2 {[%clk 0:01:16]}  Rc2 {[%clk 0:00:55]} 28. Kf1 {[%clk 0:01:11]}  Bb8 {[%clk 0:00:43]} 29. Rc1 {[%clk 0:01:01]}  Rxc1+ {[%clk 0:00:36]} 30. Bxc1 {[%clk 0:01:02]}  Bc7 {[%clk 0:00:35]} 31. Bb2 {[%clk 0:00:46]}  f4 {[%clk 0:00:16]} 32. gxf4 {[%clk 0:00:36]}  Rxf4 {[%clk 0:00:16]} 33. Bc3 {[%clk 0:00:33]}  Rc4 {[%clk 0:00:13]} 34. Bd2 {[%clk 0:00:31]}  Kf7 {[%clk 0:00:11]} 35. Rd7+ {[%clk 0:00:30]}  Kg6 {[%clk 0:00:11]} 36. f3 {[%clk 0:00:26]}  Bxh2 {[%clk 0:00:10]} 37. Ra7 {[%clk 0:00:21]}  Rc6 {[%clk 0:00:09]} 38. Be3 {[%clk 0:00:22]}  Bc7 {[%clk 0:00:09]} 39. Bb6 {[%clk 0:00:20]}  Bxb6 {[%clk 0:00:07]} 40. Rxa6 {[%clk 0:00:21]}  b4 {[%clk 0:00:00]} 41. Rxb6 {[%clk 0:00:20]} 1-0


[Site "https://www.chess.com"]

[Event "Titled Tuesday Blitz August 1 Early 2023"]
[White "Rasulov, Vugar"]
[Black "Fiorito, Joaquin"]
[WhiteFideId "13402390"]
[BlackFideId "180173"]
[WhiteElo "2854"]
[BlackElo "2725"]
[Result "1-0"]
[Round "6"]
[TimeControl "180+1"]
[Date "2023.08.01"]
[WhiteClock "0:00:41"]
[BlackClock "0:00:04"]
[Board "25"]

1. d4 {[%clk 0:03:00]}  Nf6 {[%clk 0:02:59]} 2. c4 {[%clk 0:03:01]}  e6 {[%clk 0:03:00]} 3. Nc3 {[%clk 0:03:01]}  Bb4 {[%clk 0:03:00]} 4. Bd2 {[%clk 0:03:02]}  O-O {[%clk 0:02:59]} 5. e3 {[%clk 0:03:02]}  c5 {[%clk 0:02:59]} 6. Nge2 {[%clk 0:03:00]}  b6 {[%clk 0:02:52]} 7. a3 {[%clk 0:02:57]}  Bxc3 {[%clk 0:02:52]} 8. Bxc3 {[%clk 0:02:51]}  Ne4 {[%clk 0:02:52]} 9. d5 {[%clk 0:02:51]}  Ba6 {[%clk 0:02:49]} 10. Qc2 {[%clk 0:02:44]}  exd5 {[%clk 0:02:24]} 11. cxd5 {[%clk 0:02:44]}  Nxc3 {[%clk 0:02:18]} 12. Nxc3 {[%clk 0:02:43]}  Bxf1 {[%clk 0:02:14]} 13. Kxf1 {[%clk 0:02:42]}  d6 {[%clk 0:02:15]} 14. g3 {[%clk 0:02:40]}  Nd7 {[%clk 0:02:15]} 15. Kg2 {[%clk 0:02:41]}  Ne5 {[%clk 0:02:15]} 16. e4 {[%clk 0:02:38]}  Qd7 {[%clk 0:02:13]} 17. a4 {[%clk 0:02:38]}  f5 {[%clk 0:02:13]} 18. f4 {[%clk 0:02:29]}  Ng4 {[%clk 0:02:07]} 19. Rhe1 {[%clk 0:02:29]}  Rae8 {[%clk 0:02:03]} 20. h3 {[%clk 0:02:27]}  Nf6 {[%clk 0:02:03]} 21. exf5 {[%clk 0:02:24]}  Qb7 {[%clk 0:01:46]} 22. Kh2 {[%clk 0:02:22]}  a6 {[%clk 0:01:38]} 23. Re6 {[%clk 0:02:04]}  b5 {[%clk 0:01:22]} 24. axb5 {[%clk 0:02:05]}  axb5 {[%clk 0:01:23]} 25. Rae1 {[%clk 0:02:03]}  Rd8 {[%clk 0:01:18]} 26. Re7 {[%clk 0:01:59]}  Rd7 {[%clk 0:01:18]} 27. Rxd7 {[%clk 0:01:59]}  Qxd7 {[%clk 0:01:19]} 28. Re6 {[%clk 0:01:52]}  b4 {[%clk 0:01:19]} 29. Ne4 {[%clk 0:01:52]}  Nxe4 {[%clk 0:00:29]} 30. Qxe4 {[%clk 0:01:53]}  Qa4 {[%clk 0:00:17]} 31. Rxd6 {[%clk 0:01:43]}  Qd1 {[%clk 0:00:17]} 32. Rc6 {[%clk 0:01:35]}  Qd2+ {[%clk 0:00:16]} 33. Qg2 {[%clk 0:01:36]}  Qd4 {[%clk 0:00:16]} 34. d6 {[%clk 0:01:28]}  h6 {[%clk 0:00:14]} 35. Qe2 {[%clk 0:01:17]}  Kh8 {[%clk 0:00:14]} 36. h4 {[%clk 0:01:16]}  b3 {[%clk 0:00:13]} 37. Kh3 {[%clk 0:01:14]}  Qd5 {[%clk 0:00:11]} 38. Rc7 {[%clk 0:01:00]}  Qxd6 {[%clk 0:00:11]} 39. Qe7 {[%clk 0:00:55]}  Qxe7 {[%clk 0:00:07]} 40. Rxe7 {[%clk 0:00:56]}  Rc8 {[%clk 0:00:07]} 41. Re3 {[%clk 0:00:50]}  c4 {[%clk 0:00:08]} 42. Rc3 {[%clk 0:00:51]}  Kg8 {[%clk 0:00:08]} 43. g4 {[%clk 0:00:49]}  Kf7 {[%clk 0:00:08]} 44. g5 {[%clk 0:00:50]}  h5 {[%clk 0:00:07]} 45. Kg3 {[%clk 0:00:50]}  Rc5 {[%clk 0:00:07]} 46. Kf3 {[%clk 0:00:50]}  Ke7 {[%clk 0:00:05]} 47. Ke4 {[%clk 0:00:51]}  Kd6 {[%clk 0:00:05]} 48. Rc1 {[%clk 0:00:41]}  c3 {[%clk 0:00:04]} 49. bxc3 {[%clk 0:00:41]}  b2 {[%clk 0:00:03]} 50. Rd1+ {[%clk 0:00:41]}  Kc6 {[%clk 0:00:03]} 51. Rb1 {[%clk 0:00:41]}  Rc4+ {[%clk 0:00:03]} 52. Ke5 {[%clk 0:00:41]}  Rxc3 {[%clk 0:00:02]} 53. Rxb2 {[%clk 0:00:42]}  Rh3 {[%clk 0:00:01]} 54. f6 {[%clk 0:00:40]}  gxf6+ {[%clk 0:00:02]} 55. Kxf6 {[%clk 0:00:40]}  Rxh4 {[%clk 0:00:03]} 56. f5 {[%clk 0:00:41]}  Kd6 {[%clk 0:00:03]} 57. g6 {[%clk 0:00:41]}  Rg4 {[%clk 0:00:04]} 58. Rd2+ {[%clk 0:00:41]}  Kc7 {[%clk 0:00:04]} 59. g7 {[%clk 0:00:42]}  h4 {[%clk 0:00:05]} 60. Kf7 {[%clk 0:00:42]}  Rg5 {[%clk 0:00:04]} 61. f6 {[%clk 0:00:41]} 1-0


[Site "https://www.chess.com"]

[Event "Titled Tuesday Blitz August 1 Early 2023"]
[White "Shtembuliak, Evgeny"]
[Black "Kim, Yoon-Young"]
[WhiteFideId "14113325"]
[BlackFideId "30908779"]
[WhiteElo "2853"]
[BlackElo "2723"]
[Result "1-0"]
[Round "6"]
[TimeControl "180+1"]
[Date "2023.08.01"]
[WhiteClock "0:00:18"]
[BlackClock "0:00:05"]
[Board "26"]

1. c4 {[%clk 0:02:41]}  e5 {[%clk 0:02:54]} 2. Nc3 {[%clk 0:02:41]}  Nf6 {[%clk 0:02:53]} 3. Nf3 {[%clk 0:02:41]}  Nc6 {[%clk 0:02:53]} 4. e3 {[%clk 0:02:42]}  Bb4 {[%clk 0:02:49]} 5. Qc2 {[%clk 0:02:41]}  Bxc3 {[%clk 0:02:30]} 6. Qxc3 {[%clk 0:02:42]}  Qe7 {[%clk 0:02:29]} 7. b3 {[%clk 0:02:42]}  O-O {[%clk 0:02:20]} 8. Bb2 {[%clk 0:02:41]}  d6 {[%clk 0:02:20]} 9. h3 {[%clk 0:02:41]}  a5 {[%clk 0:02:14]} 10. a3 {[%clk 0:02:41]}  Bf5 {[%clk 0:01:58]} 11. d3 {[%clk 0:02:11]}  Bg6 {[%clk 0:01:30]} 12. Nh4 {[%clk 0:02:04]}  d5 {[%clk 0:01:14]} 13. Nxg6 {[%clk 0:02:04]}  hxg6 {[%clk 0:01:15]} 14. cxd5 {[%clk 0:02:04]}  Nxd5 {[%clk 0:01:13]} 15. Qc4 {[%clk 0:02:04]}  Nb6 {[%clk 0:00:54]} 16. Qc2 {[%clk 0:02:04]}  Rfd8 {[%clk 0:00:46]} 17. Be2 {[%clk 0:02:04]}  Rd6 {[%clk 0:00:37]} 18. O-O {[%clk 0:01:54]}  Rad8 {[%clk 0:00:38]} 19. Rfc1 {[%clk 0:01:50]}  Nd5 {[%clk 0:00:35]} 20. Bf3 {[%clk 0:01:41]}  Kh7 {[%clk 0:00:34]} 21. Qc5 {[%clk 0:01:33]}  Qe6 {[%clk 0:00:28]} 22. Qb5 {[%clk 0:01:20]}  Nb6 {[%clk 0:00:23]} 23. Bxc6 {[%clk 0:01:15]}  bxc6 {[%clk 0:00:22]} 24. Qxe5 {[%clk 0:01:15]}  f6 {[%clk 0:00:11]} 25. Qxe6 {[%clk 0:01:15]}  Rxe6 {[%clk 0:00:12]} 26. d4 {[%clk 0:01:14]}  Nd5 {[%clk 0:00:11]} 27. Bc3 {[%clk 0:01:09]}  Ra8 {[%clk 0:00:11]} 28. Bd2 {[%clk 0:01:08]}  f5 {[%clk 0:00:11]} 29. g3 {[%clk 0:01:04]}  g5 {[%clk 0:00:10]} 30. Re1 {[%clk 0:00:45]}  Kg6 {[%clk 0:00:10]} 31. Rac1 {[%clk 0:00:44]}  Rh8 {[%clk 0:00:09]} 32. Kg2 {[%clk 0:00:43]}  Ra8 {[%clk 0:00:09]} 33. Rc5 {[%clk 0:00:43]}  a4 {[%clk 0:00:07]} 34. b4 {[%clk 0:00:41]}  g4 {[%clk 0:00:05]} 35. h4 {[%clk 0:00:38]}  Kf7 {[%clk 0:00:05]} 36. Rec1 {[%clk 0:00:38]}  Ra6 {[%clk 0:00:04]} 37. Ra5 {[%clk 0:00:37]}  Rb6 {[%clk 0:00:03]} 38. Rxa4 {[%clk 0:00:36]}  g5 {[%clk 0:00:04]} 39. hxg5 {[%clk 0:00:35]}  Kg6 {[%clk 0:00:05]} 40. Rh1 {[%clk 0:00:35]}  Ne7 {[%clk 0:00:05]} 41. Ra8 {[%clk 0:00:34]}  Kxg5 {[%clk 0:00:05]} 42. e4+ {[%clk 0:00:34]}  Kg6 {[%clk 0:00:05]} 43. Rh6+ {[%clk 0:00:33]}  Kf7 {[%clk 0:00:06]} 44. Rh7+ {[%clk 0:00:29]}  Kg6 {[%clk 0:00:06]} 45. exf5+ {[%clk 0:00:21]}  Nxf5 {[%clk 0:00:05]} 46. Rxc7 {[%clk 0:00:21]}  Nxd4 {[%clk 0:00:05]} 47. Be3 {[%clk 0:00:20]}  Rd6 {[%clk 0:00:05]} 48. Rg8+ {[%clk 0:00:19]}  Kf6 {[%clk 0:00:06]} 49. Rxg4 {[%clk 0:00:18]}  Ne6 {[%clk 0:00:03]} 50. Bxb6 {[%clk 0:00:18]}  Kf5 {[%clk 0:00:03]} 51. Rf4+ {[%clk 0:00:18]}  Nxf4+ {[%clk 0:00:03]} 52. gxf4 {[%clk 0:00:19]}  Kxf4 {[%clk 0:00:03]} 53. Be3+ {[%clk 0:00:19]}  Ke4 {[%clk 0:00:04]} 54. Re7+ {[%clk 0:00:18]}  Kd3 {[%clk 0:00:05]} 55. Re5 {[%clk 0:00:18]}  Rg6+ {[%clk 0:00:06]} 56. Kf3 {[%clk 0:00:18]}  Kc4 {[%clk 0:00:05]} 57. Rc5+ {[%clk 0:00:18]} 1-0


[Site "https://www.chess.com"]